{"text_format":"1","workbook":"xlsx","n_sheets":8,"sheets":["Index","Instructions","List","Revision Management","Revision History","Data Capture Sheet","HSR Summary Data","Signs"],"not_rendered":{"charts":0,"images":21,"macros":1,"external_links":0,"defined_names":8,"comments":1,"pivot_tables":0},"unopened":[],"bounds":{"document_bytes":16777216,"sheet_cells":100000,"rows_first":2000,"rows_last":500,"rows_between":2000,"halvings":0,"cell_chars":16384,"cell_head_chars":4096},"cells_cut":0,"cells_raw":0,"read":"whole","date_system":"1900"}

{"sheet":"Index","index":0,"n_rows":39,"n_cols":4,"rows_kept":39,"cut":false,"hidden":false,"merged":[[35,2,35,3]]}
[null,"ON"]
[]
[]
[]
[null,"Hazardous Substances Register Index"]
[]
[null,null,null,"Click hyperlink to goto that page."]
[]
[null,1,null,"Instructions"]
[]
[null,2,null,"Revision Management"]
[]
[null,3,null,"Revision History"]
[]
[null,4,null,"Data Capture"]
[]
[null,5,null,"HSR Summary Data     (Site HSR Register)"]
[]
[]
[]
[]
[]
[]
[null,"Useful Links"]
[]
[]
[null,null,null,"safety@transpower.co.nz"]
[]
[null,null,null,"www.transpower.co.nz"]
[]
[null,null,null,"Hazardous Substances (Classes 1 to 5 Controls) Regulations 2001"]
[null,null,null,"Hazardous Substances (Classes 1 to 5 Controls) Regulations 2001 - Schedule 3"]
[null,null,null,"     Section 2 - Quantities of flammable substance that activate Approved Handler requirements"]
[null,null,null,"     Section 4 - Quantities of class 2, 3, and 4 substances that activate Location Certificate requirements"]
[]
[null,null,"Worksafe NZ"]
[null,null,null,"Person in Charge"]
[null,null,null,"Approved Handlers"]
[null,null,null,"Test Certificates"]

{"sheet":"Instructions","index":1,"n_rows":39,"n_cols":10,"rows_kept":39,"cut":false,"hidden":true,"merged":[[3,1,3,9],[10,2,10,9],[7,2,7,9],[5,1,5,9],[6,2,6,9],[8,2,8,9],[9,2,9,9],[11,2,11,9],[12,2,12,9],[15,2,15,9],[38,2,38,9],[29,2,29,9],[35,2,35,9],[37,2,37,9],[36,2,36,9],[30,2,30,9],[33,1,33,9],[34,2,34,9],[31,2,31,9],[27,2,27,9],[28,2,28,9],[17,2,17,9],[24,2,24,9],[16,2,16,9],[20,2,20,9],[26,2,26,9],[25,2,25,9],[21,2,21,9],[22,2,22,9],[23,2,23,9]]}
[null,"Hazardous Substances Register",null,null,null,null,null,null,null,"Back to INDEX"]
[]
[null,"Introduction"]
[null,"A Hazardous Substances Register (HSR) is required under the Hazardous Substances & New Organisms Act. All hazardous substances on site must be recorded in this register.\n\nThe HSR is a listing of all products identified as dangerous or hazardous, used or stored at a facility. The HSR is used in:\n> Identifying dangerous or hazardous products used or stored on-site\n> Providing basic data to assist in sourcing Material Safety Data Sheets\n> Providing information to relevant authorities on hazardous substances on-site.\n\nThe HSR must be accessible to:\n> All employees and contractors\n> Relevant public authorities\n> Emergency services.\n\nThe process for the establishment and maintenance of Hazaradous Substances Registers can be found in Transpower Standard TP.AG 47.19 Safety, health and environmental product safety stewardship."]
[null,"Establishing and Maintaining the Hazardous Substances Register"]
[null,"The process for the establishment and maintenance of Hazaradous Substances Registers can be found in Transpower Standard TP.AG 47.19 Safety, health and environmental product safety stewardship. The key process steps are:"]
[null,"Section 1","Record the following information at the top of the 'Data Capture Sheet':\n\nA - Enter the Name of the inspector the Date and the Time that the site inspection was completed.\nB - Ensure the Site Code, Name and Contract Group are correct.\nC - Check that the Emergency Response Plan flipchart is available and easily accessible and that it is current.\n      Update as required. Change to YES once this has been done.\nD - Check that the MSDS are available and current. There is a set of generic MSDS in the Site Register and the latest updates of\n      these are all available on the Transpower Website. Refer to section 5 below for more MSDS information.\n      Change to YES once this is done.\n "]
[null,"Section 2","Record the following information to the right near the top of the 'Data Capture Sheet': Spaces have been provided for these.\n\nA - HSNO Responsibilities for the site, such as:\n   Person in Charge\n   Approved Handler(s)\nB - HSNO Certification details for the site are current, including where relevant:\n   Location Certificate (renewed annually; certification is required for locations where the thresholds quantities for defined\n   Class 1 - 5 hazardous substances are exceeded, for example Haywards and Warehouses)\n   Stationary Container Certificate(s) (new tanks must be certified before use and existing tanks recertified every 5 years.\n   Certificates are required for above ground oil storage tanks > 5,000 L capacity or diesel tanks connected to a burner\n   or a stationary internal combustion engine with a capacity of more than 500 L)\n   Approved Handler/s Certificate(s) (these are issued to individuals and are valid for 5 years)\n   Secondary Containment Certificate(s) (these are currently not required)\nC - Hazardous Substances Data is updated and correct for the site. This refers to the data in section 3 below."]
[null,"Click here to send e-mail","Ensure that copies of any issued certificates for the site and for the Approved Handler/s are placed in the Site Register's Hazardous Substances Information section. There is a five year rolling program for the Site Certification inspections of all Transpower Sites and the dates for these can be confirmed by Transpower's Safety and Health Manager. Use email link at left."]
[null,"Section 3","Record the following information on the 'Data Capture Sheet' from row 9 onwards. NOTE - Items with these hazardous substance diamonds must be noted. A list of the Product Codes is here also for reference."]
[null,null,"Column specific data is described here:\nCol B - Product Code - selected from the dropdown list\nCol C - Product Name - only required if not described in the product code\nCol D - Manufacturer/Supplier - if known\nCol E - UN Class No. from Container - if available\nCol F - MSDS available - \"Yes\" or \"No\" (applicable for new HS types identified)\nCol G - Location on Site - area where equipment is or Eq name\nCol H - this column is hidden and is used by the automated process\nCol I - Quantity of Hazardous Substance in litres or kilograms\nCol J - Container type - Note the container type and size (e.g. 1 x 200 litre steel drum, or 3 x 1.25 litre plastic bottle)\nCol K - Opened inside? - \"open\", \"closed\" or \"occasional\" - a can or drum with a cap/lid would be occasional\nCol L - Bunded? -  \"Yes\", \"No\" or \"NA\" - \"NA\" is for equipment where this is irrelevant ie Prot'n, or DIS/ES\nCol M - Comments - for any notes/comments you wish to permanently record about this item."]
[null,"Section 4","Note\nA - The location of the hazardous substance, if it is stored in several associated items of equipment, can be grouped into areas, ie \"33kv Switchyard\" to make identifying where the Hazardous Substance is a little easier. Detail each equipment item and associated Hazardous Substance thereafter. See Grouping example below. \nB - The quantity of the dangerous good on-site and in each piece of equipment in some cases will be difficult to accurately quantify. Please provide an educated estimate (e.g. '150' litres, or '20' kgs, etc.) in these cases. \nC - The quantity values in column 'I' are automatically summed (by product code) and transferred to the 'HSR Summary Data' sheet.\n\n\n\n\n\n\n\n\n\n\n\n"]
[null,"Section 5","Material Safety Data Sheets (MSDSs) should be stored in a central location, the Site Register has been selected as the appropriate place for this. A generic set of MSDSs was placed on each site after the initial site surveys were carried out and they should always be readily available to people working at the location. MSDSs provide important information about the substances people are working with and the hazards associated with those substances. MSDSs also provide information to others handling the substance, e.g. in storage and transport. The information given on an MSDS allows users to:\n• Use substances correctly and safely;\n• Understand safety recommendations and the rationale for these recommendations;\n• Be aware of the consequences of failure to follow these recommendations;\n• Recognise symptoms of overexposure; and\n• Know how to respond to emergency situations."]
[]
[null,"Undertaking an Annual Review"]
[null,"Section 6","Undertake an annual review of the Hazardous Substances Register (HSR) to ensure that the:\nA - HSNO Responsibilities are correct for the site. Refer to requirements in section 2 above.\nB - HSNO Certification details are correct. Refer to the requirements in section 2 above.\nC - Hazardous Substance Data is updated and correct for the site. This refers to the data in section 3 above.\n\nNOTE there should be a copy of the certificates in the Site Register's Hazardous Substance Information section. There is a 5 year rolling program for the certification inspections of all Transpower Sites and the dates for these can be confirmed on the Transpower Contractors/ Consultants website. Use email link below and left."]
[null,"Click here to send e-mail","Notify Transpower's Safety & Health Group by email of any newly identified hazardous substances stored or used on site, for which there is no electronic MSDS available on the Transpower Contractors/ Consultants website; and update the Hazardous Substances Register accordingly."]
[null,"Click here to access Transpower website","Electronic copies of the following are available on the Transpower Contractors/ Consultants website http://www.transpower.co.nz/ for you to download:\n> Product Safety Stewardship Standard TP.AG 47.19\n> Site Hazardous Substances Registers (for your location)\n> Material Data Safety Sheets (MSDS)\n> Emergency Response Plans Flip Chart\n> Certification Inspection Schedule\n> Test Certificates (Location and Stationary Container)\n> Erma Quick Guides"]
[]
[null,"Instructions for Data Entry"]
[null,"Step 1","Move the cursor onto the cell into which you require to enter data."]
[null,"Step 2","Type in the necessary information, and hit the [Enter] key when complete."]
[null,"Step 3","In the 'Product Name' key, enter either the manuafacturer's/ supplier's marketing name for the product, or its common name."]
[null,"Step 4","In the 'Other Names' field, enter alternatives under which the substance may be known as (e.g. Diesel is also known as ADO)."]
[null,"Step 5","Location on Site', this is where the substance is stored on site. Each location should develop its own code for storage locations on site, this location code will enable all substances stored in the same area to be readily identified by using the 'in-built' data filter function."]
[null,"Step 6","MSDS Location - where the hard copies are kept."]
[null,"Step 7","Hazard Class': Substances should be classified as detailed in Transport of Dangerous Goods Standard as to whether they are Class 3.1, 3.2 etc."]
[null,"Step 8","'UN No.'; Enter the United Nations Number for the substance in question, normally detailed on MSDS's."]
[null,"Step 9","Enter any comments which may be of local benefit, e.g.. supplier's name."]
[null,"Step 10","There are 3 miscellaneous categories (X1 - Misc… to X3 - Misc…) for various different types of misc substances."]
[null,null,"Please don't use any Substance types other than those in the dropdown list in the Product Code column - Column B"]
[null,"Note:","If you have any misc substances please look up their Hazard Classification from on the product or the MSDS and apply an 'x' in the respective row/column (L28-R30) on the HSR Summary Data sheet. If unsure contact SafetyServices@transpower.co.nz"]
[null,"Data Filter"]
[null,"If you have a large number of hazardous materials stored on site, then quickly locating their storage location may be difficult. The 'Hazardous Substances Register' has a built in 'Data Filter' to enable the quick selection of relevant data. To use this feature, follow these steps:"]
[null,"Step 1","Click your mouse onto the ▼ located in the header box of the item of interest.",null,null,"ß","located in the header box of the item of interest.  "]
[null,"Step 2","From the dropdown menu that appears (alphabetically sorted), selected the item or criteria required"]
[null,"Step 3","The database will automatically filter out the substances that meet the criteria selected. To narrow a"]
[null,null,"search further, additional filters can be applied to additional header columns."]
[null,"Step 4","Re-click mouse onto the ▼ and select 'All' from the dropdown menu/s to reset your database.",null,null,"ß","and select 'All' from the dropdown menu to reset your database."]

{"sheet":"List","index":2,"n_rows":27,"n_cols":4,"rows_kept":27,"cut":false,"hidden":true,"merged":[]}
["Product Codes"]
[null,null,null,"Bunding?"]
["A - Asbestos","A"]
["BR - Battery Acid - Replenishment","BR",null,"Yes"]
["BS - Battery Acid - Sealed","BS",null,"No"]
["BV - Battery Acid - Vented","BV",null,"N/A"]
["C - Cobalt Chloride","C"]
["D - Diesel","D"]
["H - Hydrogen","H"]
["G - Gas (not listed)","G"]
["Ga - Oxygen","Ga"]
["Gb - Acetylene","Gb"]
["Gc - Nitrogen","Gc"]
["Gd - Carbon Dioxide","Gd"]
["K - Cleaning Solutions","K"]
["Ke/T - Kerosine or Turpentine","Ke/T"]
["L - Lubricating Oils","L"]
["M - Mercury","M"]
["N - Ammonia","N"]
["O - Insulating Oil","O"]
["P - Polychlorinated Biphenyls","P"]
["S - Sulphur Hexaflouride","S"]
["Su - Sulphur","Su"]
["V - Solvents (General)","V"]
["X1 - Miscellaneous","X1"]
["X2 - Miscellaneous","X2"]
["X3 - Miscellaneous","X3"]

{"sheet":"Revision Management","index":3,"n_rows":23,"n_cols":4,"rows_kept":23,"cut":false,"hidden":true,"merged":[[21,3,21,5]]}
[null,null,null,"Back to INDEX"]
[null,"HSR Revision Management"]
[null,"HSR Revision"]
[]
[null,null,"The Hazardous Substance Registers (HSRs) are .xls spreadsheets and all conform to a standard naming convention."]
[null,null,"ie \"HSNO-XXX-RevX.xls\""]
[null,null,"     The 'XXX' refers to the standard site abbreiviations as detailed in TP.AG 10.11 - ie INV, BPE, TMN etc"]
[null,null,"     The 'X' in RevX refers to the revision number - ie Rev3 (first issued version's revision number)"]
[null,null,"These file names need to stay in this format as the master database (managed and maintained by Transpower) looks for the files named in this way for the extraction of the relevant data."]
[]
[null,"The Current Revision"]
[]
[null,null,"The most current revision of the HSR spreadsheets are held by Transpower in a secure area on their network. A copy of these will always be available for download on the Contractor's/Consultant's area of their website. The current revision will change once the Transpower Safety & Health Manager receives and approves an updated HSR from the contractor and updates the NZ database. "]
[]
[null,"Obtaining and returning the latest HSR"]
[]
[null,1,"The current versions of the HSRs will be available for download from the Contractors/Consultants area of Transpowers Website. They will be sorted into Contract Groups and will be stored as .zip files for downloading convenience and speed. Note - they will be available for download by anyone who has access to this area of the Website so contractors will need to ensure they manage this part of the process carefully to avoid duplication errors."]
[]
[null,2,"Once downloaded please refer to the instructions and then carry out the site HS reviews and update the data on the 'Data Capture Sheet'."]
[null,null,"Once the HS review is complete and the HS Register has been updated please ensure you update the HSR History sheet and resave the HSR with it's new revision number. This will be the next number after the downloaded version's number - ie downloaded Rev3 therefore new version is Rev4."]
[null,null,"After you have done this please print the HSR Summary sheet for inclusion in the Hazardous Substances section of the site registers kept on site. This should replace the existing register.","Email link"]
[null,null,"When completed email it back to the Safety & Health team at Transpower using the email address safetyservices@transpower.co.nz - see link to right ->","safetyservices@transpower.co.nz "]
[null,null,"The SafetyServices team at Transpower will update the master database and upload the new revision of that HSR to the Contractor's/Consultant's area of the website. This updated file will then becomes the new current HSR revision and is available for download."]

{"sheet":"Revision History","index":4,"n_rows":27,"n_cols":5,"rows_kept":27,"cut":false,"hidden":true,"merged":[[3,1,4,3]]}
[null,null,null,null,"Back to INDEX"]
[null,"HSR Revision History"]
[]
[null,"Please document the activities/changes that were undertaken/made for this revision. Please note that this revision once accepted by Transpower's Safety & Health Team will be updated onto the Transpower Website with the new revision no. for example:-"]
[]
["eg","Rev6","2009-07-05","Annual HS survey and documentation updates carried out as per service specification. Completed by Jo Bloggs"]
[]
[null,"History"]
[]
[null,"Rev No.","Date","Details"]
[null,"Rev1","2005-10-04","Initial site survey to determine quantities and types of HS on site"]
[null,"Rev2","2006-06-01","Modifications of HSNO Register spreadsheets to detail HS to be removed from sites (ie no non essential item to be kept on site)"]
[null,"Rev3","2008-09-01","Modifications to Register spreadsheet to allow for auto data extraction to master database.\nAddition of certification details information and relevant persons with site responsibilities.\nAddition of Sign calculation code to enable contractors to determine and effect sign updating if HS changes necessitate this.\nUpdates to Instructions\nAddition of Index, Revision Management information sheet and Revision History sheet"]
[null,"Rev4","2008-11-20","Added mods to fix auto save before exit function."]
[null,"Rev5","22/01/2009","Updates applied to Instructions and associated information"]
[null,"Rev6","2011-03-08","Code Mods required to comply with Excel 2007"]
[null,"Rev7","2012-04-10","Annual HS survey and documentation updates carried out as per service specification."]
[null,"Rev16","2016-01-11","Annual HS survey and documentation updates carried out as per service specification."]
[null,"Rev17","2017-01-04","Annual HS survey and documentation updates carried out as per service specification."]
[null,"Rev18","2018-01-12","Annual HS survey and documentation updates carried out as per service specification."]
[null,"Rev18a","2018-07-06","Annual HS survey and documentation updates carried out as per TP.SS - HSS011 to SMP-06.40.001"]
[null,"Rev19","2019-08-22","Annual HS survey and documentation updates carried out as per service specification."]
[null,"Rev20","2020-07-09","Annual HS survey and documentation updates carried out as per service specification."]
[null,"Rev21","2021-07-14","Battery replacement updates. Completed by Sheryl Christoffersen"]
[null,"Rev21.1","2021-07-17","Annual HS survey and documentation updates carried out as per service specification. - Completed by Rory Drysdale"]
[null,"Rev22","2022-07-06","Annual HS survey and documentation updates carried out as per service specification. Completed by Rory Drysdale"]
[null,"Rev23","2023-07-27","Annual HS survey and documentation updates carried out as per service specification. Completed by Rory Drysdale"]

{"sheet":"Data Capture Sheet","index":5,"n_rows":200,"n_cols":22,"rows_kept":200,"cut":false,"hidden":false,"merged":[[0,1,0,5],[0,6,0,8],[1,2,1,3],[2,2,2,3],[2,4,2,6],[8,16,8,18],[9,16,9,18],[3,2,3,3],[3,4,3,6],[2,18,3,18],[2,14,3,15],[2,16,3,16],[2,17,3,17],[3,10,4,10]]}
[null,"General Data"]
[null,"Name of Inspector:","Glenn Allen",null,"Site Name:","WRK","Wairakei",null,"RSA3",null,"This site requires a Location Certificate?"]
[null,"Date of inspection:","2025-07-14",null,"Emergency Response Plan Flip Chart Available and Current (yes/no)?:",null,null,null,"Yes",null,"No",null,null,null,"HSNO Responsibilities",null,"Name","Company","Function/Role","Approved Handler","Certificate"]
[null,"Time of inspection:",null,null,"MSDS Available and Current (yes/no)?: (In Site Register)",null,null,null,"Yes",null,"Click here for Info.",null,null,null,null,null,null,null,null,"Certificate No.","Expiry Date"]
[null,null,null,null,null,null,null,null,null,null,null,null,null,null,1,"Person in Charge","Rory Drysdale","Downer","Manager","N/A","N/A"]
[null,null,null,null,null,null,null,null,null,null,null,null,null,null,2,"Approved Handler 1","Tawhai Raureti","Downer","Supervisor"]
[null,null,null,null,null,null,null,null,null,null,null,null,null,null,3,"Approved Handler 2"]
[null,"Product Code","Product Name - if not described in Code","Manufacturer or Supplier Name","UN Class number on container","Material Safety Data Sheet available? For new HS identified","Location on Site",null,"Estimated values are in Red\n\nQuantity (Kg/Lts)","Container Type","Open container inside? Closed Occasional Open","Bunded Y/N/NA","Comments",null,"HSNO Certification Details"]
[null,"S - Sulphur Hexaflouride",null,"ABB",null,null,"WRK-CB-82",{"$f":"IF(B9=\"\",\"\",VLOOKUP(B9,Codes2,2,FALSE))","v":"S"},21,"Circuit Breaker","Closed","N/A",null,null,"Required?","Certification Type?","Site",null,null,"Certificate No.","Expiry date"]
[null,"S - Sulphur Hexaflouride",null,"ABB",null,null,"WRK-CB-102","S",21,"Circuit Breaker","Closed","N/A",null,null,{"$f":"K3","v":"No"},"Location Certificate",{"$f":"F2&\" - \"&G2& \" - \"&I2","v":"WRK - Wairakei - RSA3"}]
[null,"S - Sulphur Hexaflouride",null,"ABB",null,null,"WRK-CB-108","S",21,"Circuit Breaker","Closed","N/A",null,null,{"$f":"IF(AND(Q14=\"\",Q15=\"\",Q16=\"\",Q17=\"\",Q18=\"\",Q19=\"\",Q20=\"\",Q21=\"\",Q22=\"\",Q23=\"\"),\"No\",\"Yes\")","v":"No"},"Stationary Container Certificate/s"]
[null,"S - Sulphur Hexaflouride",null,"ABB",null,null,"WRK-CB-112","S",21,"Circuit Breaker","Closed","N/A",null,null,"Stationary Container Certification (if required)"]
[null,"S - Sulphur Hexaflouride",null,"ABB",null,null,"WRK-CB-122","S",21,"Circuit Breaker","Closed","N/A",null,null,"Item","Type","Description","HS Type","Capacity","Certificate No.","Expiry date","Bunded OK?"]
[null,"S - Sulphur Hexaflouride",null,"ABB",null,null,"WRK-CB-132","S",21,"Circuit Breaker","Closed","N/A",null,null,1,"Stationary Container 1"]
[null,"S - Sulphur Hexaflouride",null,"Siemens",null,null,"WRK-CB-142","S",15.5,"Circuit Breaker","Closed","N/A",null,null,2,"Stationary Container 2"]
[null,"L - Lubricating Oils",null,"Siemens",null,null,"WRK-CB-142","L",18,"Circuit Breaker","Closed","No",null,null,3,"Stationary Container 3"]
[null,"S - Sulphur Hexaflouride",null,"ABB",null,null,"WRK-CB-152","S",21,"Circuit Breaker","Closed","N/A",null,null,4,"Stationary Container 4"]
[null,"S - Sulphur Hexaflouride",null,"Siemens",null,null,"WRK-CB-162","S",15.5,"Circuit Breaker","Closed","N/A",null,null,5,"Stationary Container 5"]
[null,"L - Lubricating Oils",null,"Siemens",null,null,"WRK-CB-162","L",18,"Circuit Breaker","Closed","No",null,null,6,"Stationary Container 6"]
[null,"S - Sulphur Hexaflouride",null,"Siemens",null,null,"WRK-CB-172","S",15.5,"Circuit Breaker","Closed","N/A",null,null,7,"Stationary Container 7"]
[null,"L - Lubricating Oils",null,"Siemens",null,null,"WRK-CB-172","L",18,"Circuit Breaker","Closed","No",null,null,8,"Stationary Container 8"]
[null,"S - Sulphur Hexaflouride",null,"ABB",null,null,"WRK-CB-178","S",21,"Circuit Breaker","Closed","N/A",null,null,9,"Stationary Container 9"]
[null,"S - Sulphur Hexaflouride",null,"ABB",null,null,"WRK-CB-182","S",18,"Circuit Breaker","Closed","N/A",null,null,10,"Stationary Container 10"]
[null,"S - Sulphur Hexaflouride",null,"Siemens",null,null,"WRK-CB-192","S",15.5,"Circuit Breaker","Closed","N/A"]
[null,"L - Lubricating Oils",null,"Siemens",null,null,"WRK-CB-192","L",18,"Circuit Breaker","Closed","No"]
[null,"S - Sulphur Hexaflouride",null,"ABB",null,null,"WRK-CB-198","S",21,"Circuit Breaker","Closed","N/A"]
[null,"S - Sulphur Hexaflouride",null,"Merling",null,null,"WRK-CB-2002","S",0.35,"Circuit Breaker","Closed","N/A"]
[null,"S - Sulphur Hexaflouride",null,"Merling",null,null,"WRK-CB-2012","S",0.35,"Circuit Breaker","Closed","N/A"]
[null,"S - Sulphur Hexaflouride",null,"Merling",null,null,"WRK-CB-2022","S",0.35,"Circuit Breaker","Closed","N/A"]
[null,"S - Sulphur Hexaflouride",null,"Merling",null,null,"WRK-CB-2032","S",0.35,"Circuit Breaker","Closed","N/A"]
[null,"S - Sulphur Hexaflouride",null,"Merling",null,null,"WRK-CB-2042","S",0.35,"Circuit Breaker","Closed","N/A"]
[null,"S - Sulphur Hexaflouride",null,"Merling",null,null,"WRK-CB-2052","S",0.35,"Circuit Breaker","Closed","N/A"]
[null,"S - Sulphur Hexaflouride",null,"Merling",null,null,"WRK-CB-2062","S",0.35,"Circuit Breaker","Closed","N/A"]
[null,"S - Sulphur Hexaflouride",null,"Merling",null,null,"WRK-CB-2072","S",0.35,"Circuit Breaker","Closed","N/A"]
[null,"S - Sulphur Hexaflouride",null,"Merling",null,null,"WRK-CB-2082","S",0.35,"Circuit Breaker","Closed","N/A"]
[null,"BS - Battery Acid - Sealed",null,"Genesis 12TD150F",null,null,"WRK-C-PSUP-48V-1","BS",60,"Batteries (16 x 12V)","Closed","N/A","Within 2 Panels"]
[null,"BS - Battery Acid - Sealed",null,"Genesis 12TD150F",null,null,"WRK-C-PSUP-48V-2","BS",60,"Batteries (16 x 12V)","Closed","N/A","Within 2 Panels"]
[null,"O - Insulating Oil",null,"ABB",null,null,"WRK-CT-82 R","O",170,"Current Transformer","Closed","No"]
[null,"O - Insulating Oil",null,"ABB",null,null,"WRK-CT-82 Y","O",170,"Current Transformer","Closed","No"]
[null,"O - Insulating Oil",null,"ABB",null,null,"WRK-CT-82 B","O",170,"Current Transformer","Closed","No"]
[null,"O - Insulating Oil",null,"Arteche",null,null,"WRK-CT-102 R",{"$f":"IF(B41=\"\",\"\",VLOOKUP(B41,Codes2,2,FALSE))","v":"O"},140,"Current Transformer","Closed","No"]
[null,"O - Insulating Oil",null,"Arteche",null,null,"WRK-CT-102 Y","O",140,"Current Transformer","Closed","No"]
[null,"O - Insulating Oil",null,"Arteche",null,null,"WRK-CT-102 B","O",140,"Current Transformer","Closed","No"]
[null,"O - Insulating Oil",null,"Mitsubishi",null,null,"WRK-CT-108 R","O",300,"Current Transformer","Closed","No"]
[null,"O - Insulating Oil",null,"Mitsubishi",null,null,"WRK-CT-108 Y","O",300,"Current Transformer","Closed","No"]
[null,"O - Insulating Oil",null,"Mitsubishi",null,null,"WRK-CT-108 B","O",300,"Current Transformer","Closed","No"]
[null,"O - Insulating Oil",null,"Koncar",null,null,"WRK-CT-112 R","O",771,"Current Transformer","Closed","No"]
[null,"O - Insulating Oil",null,"Koncar",null,null,"WRK-CT-112 Y","O",771,"Current Transformer","Closed","No"]
[null,"O - Insulating Oil",null,"Koncar",null,null,"WRK-CT-112 B","O",771,"Current Transformer","Closed","No"]
[null,"O - Insulating Oil",null,"Arteche",null,null,"WRK-CT-122 R","O",140,"Current Transformer","Closed","No"]
[null,"O - Insulating Oil",null,"Arteche",null,null,"WRK-CT-122 Y","O",140,"Current Transformer","Closed","No"]
[null,"O - Insulating Oil",null,"Arteche",null,null,"WRK-CT-122 B","O",140,"Current Transformer","Closed","No"]
[null,"O - Insulating Oil",null,"Arteche",null,null,"WRK-CT-132 R","O",140,"Current Transformer","Closed","No"]
[null,"O - Insulating Oil",null,"Arteche",null,null,"WRK-CT-132 Y","O",140,"Current Transformer","Closed","No"]
[null,"O - Insulating Oil",null,"Arteche",null,null,"WRK-CT-132 B","O",140,"Current Transformer","Closed","No"]
[null,"O - Insulating Oil",null,"Nissin",null,null,"WRK-CT-142 R","O",300,"Current Transformer","Closed","No"]
[null,"O - Insulating Oil",null,"Nissin",null,null,"WRK-CT-142 Y","O",300,"Current Transformer","Closed","No"]
[null,"O - Insulating Oil",null,"Nissin",null,null,"WRK-CT-142 B","O",300,"Current Transformer","Closed","No"]
[null,"O - Insulating Oil",null,"Koncar",null,null,"WRK-CT-152 R","O",771,"Current Transformer","Closed","No"]
[null,"O - Insulating Oil",null,"Koncar",null,null,"WRK-CT-152 Y","O",771,"Current Transformer","Closed","No"]
[null,"O - Insulating Oil",null,"Koncar",null,null,"WRK-CT-152 B","O",771,"Current Transformer","Closed","No"]
[null,"O - Insulating Oil",null,"Koncar",null,null,"WRK-CT-162 R","O",771,"Current Transformer","Closed","No"]
[null,"O - Insulating Oil",null,"Koncar",null,null,"WRK-CT-162 Y","O",771,"Current Transformer","Closed","No"]
[null,"O - Insulating Oil",null,"Koncar",null,null,"WRK-CT-162 B","O",771,"Current Transformer","Closed","No"]
[null,"O - Insulating Oil",null,"Koncar",null,null,"WRK-CT-172 R","O",771,"Current Transformer","Closed","No"]
[null,"O - Insulating Oil",null,"Koncar",null,null,"WRK-CT-172 Y","O",771,"Current Transformer","Closed","No"]
[null,"O - Insulating Oil",null,"Koncar",null,null,"WRK-CT-172 B","O",771,"Current Transformer","Closed","No"]
[null,"O - Insulating Oil",null,"Arteche",null,null,"WRK-CT-178 R","O",140,"Current Transformer","Closed","No"]
[null,"O - Insulating Oil",null,"Arteche",null,null,"WRK-CT-178 Y","O",140,"Current Transformer","Closed","No"]
[null,"O - Insulating Oil",null,"Arteche",null,null,"WRK-CT-178 B","O",140,"Current Transformer","Closed","No"]
[null,"O - Insulating Oil",null,"Koncar",null,null,"WRK-CT-182 R","O",771,"Current Transformer","Closed","No"]
[null,"O - Insulating Oil",null,"Koncar",null,null,"WRK-CT-182 Y","O",771,"Current Transformer","Closed","No"]
[null,"O - Insulating Oil",null,"Koncar",null,null,"WRK-CT-182 B",{"$f":"IF(B73=\"\",\"\",VLOOKUP(B73,Codes2,2,FALSE))","v":"O"},771,"Current Transformer","Closed","No"]
[null,"O - Insulating Oil",null,"Mitsubishi",null,null,"WRK-CT-192 R","O",330,"Current Transformer","Closed","No"]
[null,"O - Insulating Oil",null,"Mitsubishi",null,null,"WRK-CT-192 Y","O",330,"Current Transformer","Closed","No"]
[null,"O - Insulating Oil",null,"Mitsubishi",null,null,"WRK-CT-192 B","O",330,"Current Transformer","Closed","No"]
[null,"O - Insulating Oil",null,"Arteche",null,null,"WRK-CT-198 R","O",140,"Current Transformer","Closed","No"]
[null,"O - Insulating Oil",null,"Arteche",null,null,"WRK-CT-198 Y","O",140,"Current Transformer","Closed","No"]
[null,"O - Insulating Oil",null,"Arteche",null,null,"WRK-CT-198 B","O",140,"Current Transformer","Closed","No"]
[null,"O - Insulating Oil",null,"ABB",null,null,"WRK-CVT-102 R","O",117,"Voltage Transformer","Closed","No"]
[null,"O - Insulating Oil",null,"ABB",null,null,"WRK-CVT-102 Y","O",117,"Voltage Transformer","Closed","No"]
[null,"O - Insulating Oil",null,"ABB",null,null,"WRK-CVT-102 B","O",117,"Voltage Transformer","Closed","No"]
[null,"O - Insulating Oil",null,"ABB",null,null,"WRK-CVT-112 R","O",117,"Voltage Transformer","Closed","No"]
[null,"O - Insulating Oil",null,"ABB",null,null,"WRK-CVT-112 Y","O",117,"Voltage Transformer","Closed","No"]
[null,"O - Insulating Oil",null,"ABB",null,null,"WRK-CVT-112 B","O",117,"Voltage Transformer","Closed","No"]
[null,"O - Insulating Oil",null,"ABB",null,null,"WRK-CVT-122 R","O",117,"Voltage Transformer","Closed","No"]
[null,"O - Insulating Oil",null,"ABB",null,null,"WRK-CVT-122 Y","O",117,"Voltage Transformer","Closed","No"]
[null,"O - Insulating Oil",null,"ABB",null,null,"WRK-CVT-122 B","O",117,"Voltage Transformer","Closed","No"]
[null,"O - Insulating Oil",null,"ABB",null,null,"WRK-CVT-132 R","O",117,"Voltage Transformer","Closed","No"]
[null,"O - Insulating Oil",null,"ABB",null,null,"WRK-CVT-132 Y","O",117,"Voltage Transformer","Closed","No"]
[null,"O - Insulating Oil",null,"ABB",null,null,"WRK-CVT-132 B","O",117,"Voltage Transformer","Closed","No"]
[null,"O - Insulating Oil",null,"ABB",null,null,"WRK-CVT-142 R","O",117,"Voltage Transformer","Closed","No"]
[null,"O - Insulating Oil",null,"ABB",null,null,"WRK-CVT-142 Y","O",117,"Voltage Transformer","Closed","No"]
[null,"O - Insulating Oil",null,"ABB",null,null,"WRK-CVT-142 B","O",117,"Voltage Transformer","Closed","No"]
[null,"O - Insulating Oil",null,"ABB",null,null,"WRK-CVT-152 R","O",117,"Voltage Transformer","Closed","No"]
[null,"O - Insulating Oil",null,"ABB",null,null,"WRK-CVT-152 Y","O",117,"Voltage Transformer","Closed","No"]
[null,"O - Insulating Oil",null,"ABB",null,null,"WRK-CVT-152 B","O",117,"Voltage Transformer","Closed","No"]
[null,"O - Insulating Oil",null,"ABB",null,null,"WRK-CVT-162 R","O",117,"Voltage Transformer","Closed","No"]
[null,"O - Insulating Oil",null,"ABB",null,null,"WRK-CVT-162 Y","O",117,"Voltage Transformer","Closed","No"]
[null,"O - Insulating Oil",null,"ABB",null,null,"WRK-CVT-162 B","O",117,"Voltage Transformer","Closed","No"]
[null,"O - Insulating Oil",null,"ABB",null,null,"WRK-CVT-172 R","O",117,"Voltage Transformer","Closed","No"]
[null,"O - Insulating Oil",null,"ABB",null,null,"WRK-CVT-172 Y","O",117,"Voltage Transformer","Closed","No"]
[null,"O - Insulating Oil",null,"ABB",null,null,"WRK-CVT-172 B","O",117,"Voltage Transformer","Closed","No"]
[null,"O - Insulating Oil",null,"ABB",null,null,"WRK-CVT-192 R","O",117,"Voltage Transformer","Closed","No"]
[null,"O - Insulating Oil",null,"ABB",null,null,"WRK-CVT-192 Y",{"$f":"IF(B105=\"\",\"\",VLOOKUP(B105,Codes2,2,FALSE))","v":"O"},117,"Voltage Transformer","Closed","No"]
[null,"O - Insulating Oil",null,"ABB",null,null,"WRK-CVT-192 B","O",117,"Voltage Transformer","Closed","No"]
[null,"BS - Battery Acid - Sealed",null,"Exide",null,null,"WRK-P-PSUP-220KV-1","BS",60,"Battery Cells (54 x 2.2V)","Closed","N/A"]
[null,"BS - Battery Acid - Sealed",null,"Enersys",null,null,"WRK-P-PSUP-220KV-2","BS",60,"Battery Cells (54 x 2.2V)","Closed","N/A"]
[null,"BS - Battery Acid - Sealed",null,"Enersys",null,null,"WRK-P-PSUP-33KV-SWRM-1","BS",60,"Battery Cells (54 x 2.2V)","Closed","N/A"]
[null,"BS - Battery Acid - Sealed",null,"Enersys",null,null,"WRK-P-PSUP-33KV-SWRM-2","BS",60,"Battery Cells (54 x 2.2V)","Closed","N/A"]
[null,"O - Insulating Oil",null,"Hawker Siddley",null,null,"WRK-TF-T29 R","O",19844,"Power Transformer","Closed","Yes"]
[null,"O - Insulating Oil",null,"Hawker Siddley",null,null,"WRK-TF-T29 Y","O",19844,"Power Transformer","Closed","Yes"]
[null,"O - Insulating Oil",null,"Hawker Siddley",null,null,"WRK-TF-T29 B Not on site","O",null,"Power Transformer","Closed","Yes"]
[null,"O - Insulating Oil",null,"Hawker Siddley",null,null,"WRK-TF-T29 Sp","O",19844,"Power Transformer","Closed","Yes"]
[null,"O - Insulating Oil",null,"CGE",null,null,"WRK-TF-T30 R","O",12454,"Power Transformer","Closed","Yes"]
[null,"O - Insulating Oil",null,"CGE",null,null,"WRK-TF-T30 Y","O",12454,"Power Transformer","Closed","Yes"]
[null,"O - Insulating Oil",null,"CGE",null,null,"WRK-TF-T30 B","O",12454,"Power Transformer","Closed","Yes"]
[null,"O - Insulating Oil",null,"Elsewedy Electric",null,null,"WRK-TF-T29 R/Y/B New","O","52320Lt","Power Transformer","Closed","Yes"]
[null,"O - Insulating Oil",null,"Elsewedy Electric",null,null,"WRK-TF-T30 R/Y/B New ","O","52320Lt","Power Transformer","Closed","Yes"]
[null,null,null,null,null,null,null,""]
[null,null,null,null,null,null,null,""]
[null,null,null,null,null,null,null,""]
[null,null,null,null,null,null,null,""]
[null,null,null,null,null,null,null,""]
[null,null,null,null,null,null,null,""]
[null,null,null,null,null,null,null,""]
[null,null,null,null,null,null,null,""]
[null,null,null,null,null,null,null,""]
[null,null,null,null,null,null,null,""]
[null,null,null,null,null,null,null,""]
[null,null,null,null,null,null,null,""]
[null,null,null,null,null,null,null,""]
[null,null,null,null,null,null,null,""]
[null,null,null,null,null,null,null,""]
[null,null,null,null,null,null,null,""]
[null,null,null,null,null,null,null,""]
[null,null,null,null,null,null,null,{"$f":"IF(B137=\"\",\"\",VLOOKUP(B137,Codes2,2,FALSE))","v":""}]
[null,null,null,null,null,null,null,""]
[null,null,null,null,null,null,null,""]
[null,null,null,null,null,null,null,""]
[null,null,null,null,null,null,null,""]
[null,null,null,null,null,null,null,""]
[null,null,null,null,null,null,null,""]
[null,null,null,null,null,null,null,""]
[null,null,null,null,null,null,null,""]
[null,null,null,null,null,null,null,""]
[null,null,null,null,null,null,null,""]
[null,null,null,null,null,null,null,""]
[null,null,null,null,null,null,null,""]
[null,null,null,null,null,null,null,""]
[null,null,null,null,null,null,null,""]
[null,null,null,null,null,null,null,""]
[null,null,null,null,null,null,null,""]
[null,null,null,null,null,null,null,""]
[null,null,null,null,null,null,null,""]
[null,null,null,null,null,null,null,""]
[null,null,null,null,null,null,null,""]
[null,null,null,null,null,null,null,""]
[null,null,null,null,null,null,null,""]
[null,null,null,null,null,null,null,""]
[null,null,null,null,null,null,null,""]
[null,null,null,null,null,null,null,""]
[null,null,null,null,null,null,null,""]
[null,null,null,null,null,null,null,""]
[null,null,null,null,null,null,null,""]
[null,null,null,null,null,null,null,""]
[null,null,null,null,null,null,null,""]
[null,null,null,null,null,null,null,""]
[null,null,null,null,null,null,null,{"$f":"IF(B169=\"\",\"\",VLOOKUP(B169,Codes2,2,FALSE))","v":""}]
[null,null,null,null,null,null,null,""]
[null,null,null,null,null,null,null,""]
[null,null,null,null,null,null,null,""]
[null,null,null,null,null,null,null,""]
[null,null,null,null,null,null,null,""]
[null,null,null,null,null,null,null,""]
[null,null,null,null,null,null,null,""]
[null,null,null,null,null,null,null,""]
[null,null,null,null,null,null,null,""]
[null,null,null,null,null,null,null,""]
[null,null,null,null,null,null,null,""]
[null,null,null,null,null,null,null,""]
[null,null,null,null,null,null,null,""]
[null,null,null,null,null,null,null,""]
[null,null,null,null,null,null,null,""]
[null,null,null,null,null,null,null,""]
[null,null,null,null,null,null,null,""]
[null,null,null,null,null,null,null,""]
[null,null,null,null,null,null,null,""]
[null,null,null,null,null,null,null,""]
[null,null,null,null,null,null,null,""]
[null,null,null,null,null,null,null,""]
[null,null,null,null,null,null,null,""]
[null,null,null,null,null,null,null,""]
[null,null,null,null,null,null,null,""]
[null,null,null,null,null,null,null,""]
[null,null,null,null,null,null,null,""]
[null,null,null,null,null,null,null,""]
[null,null,null,null,null,null,null,""]
[null,null,null,null,null,null,null,""]
[null,null,null,null,null,null,null,""]

{"sheet":"HSR Summary Data","index":6,"n_rows":54,"n_cols":19,"rows_kept":54,"cut":false,"hidden":false,"merged":[[1,6,1,7],[12,20,13,20],[0,9,0,10],[1,9,2,9],[1,10,2,10],[0,15,2,18],[0,11,0,14],[2,3,2,5],[34,8,35,8],[26,0,26,8],[50,2,50,3],[44,2,44,3],[45,2,45,3],[46,2,46,3],[40,2,40,3],[47,2,47,3],[48,2,48,3],[49,2,49,3],[39,2,39,3],[45,9,45,10],[45,11,45,18],[51,8,53,8],[51,2,51,3],[52,2,52,3],[53,2,53,3],[26,11,26,18],[36,9,38,18],[42,9,42,11],[43,9,43,11],[43,13,43,15]]}
[null,"Hazardous Substances Register - Summary Sheet",null,null,null,null,null,null,null,"Quantity Values",null,"2.2, 3, 6, 8, 9, ",null,null,null,"DoubleClick to update\nSign Type\n&\nQuantity Values"]
[null,"Site Name:",{"$f":"'Data Capture Sheet'!G2","v":"Wairakei"},{"$f":"'Data Capture Sheet'!F2","v":"WRK"},{"$f":"'Data Capture Sheet'!I2","v":"RSA3"},"Date of Inspection:",{"$f":"'Data Capture Sheet'!C3","v":"2025-07-14"},null,"Surveyed by","Previous","Current"]
[null,"MSDS Available:",{"$f":"'Data Capture Sheet'!I4","v":"Yes"},"Emergency Response Plan on site:",null,null,{"$f":"'Data Capture Sheet'!I3","v":"Yes"},null,{"$f":"'Data Capture Sheet'!C2","v":"Glenn Allen"}]
["Product Code","Product Name","Other Names","UN No.","UN Class.","Hazard Classification.","Quantity (Litres or Kgs)","Lts or Kgs","Comment","2022-07-06","2023-07-23",2.1,2.2000000000000002,3,4.0999999999999996,5,6,8,9]
["S","Sulphur Hexafluoride","SF6; Sulphur fluoride",1080,2.2000000000000002,"Non Hazardous",{"$f":"SUMIF('Data Capture Sheet'!$H$9:$H$200,A5,'Data Capture Sheet'!$I$9:$I$200)","v":272.1500000000002},"Kgs","CAS 2551-62-4; Liquified, non-flammable, odourless gas. Much denser than air (5.1). Ozone depleting chemical.",272.1500000000002,272.1500000000002,null,"x"]
["M","Mercury",null,2809,8,"6.1B; 6.5B; 6.8A; 6.9A; 8.1A; 9.1A; 9.2B; 9.3A",{"$f":"SUMIF('Data Capture Sheet'!$H$9:$H$200,A6,'Data Capture Sheet'!$I$9:$I$200)","v":0},"Ltrs","CAS 7439-97-6; Silvery corrosive and harmful liquid. Evolves toxic vapours. Forms explosive compounds with amonia, amines and acetylene. Amalgamates with some metals.",0,0,null,null,null,null,null,"","",""]
["H","Hydrogen",null,1049,2.1,"2.1.1A",{"$f":"SUMIF('Data Capture Sheet'!$H$9:$H$200,A7,'Data Capture Sheet'!$I$9:$I$200)","v":0},"Kgs","CAS 1333-74-0; Flammable odourless gas. Significantly less dense than air (0.07). If a leak occurs, high pressure jet of gas may catch fire and burn with a colourless flame. Identify if only in existing sealed equipment.",0,0,""]
["P","Polychlorinated Biphenyls","PCB's",2315,9,"6.8A, 6.9A and 9.1A",{"$f":"SUMIF('Data Capture Sheet'!$H$9:$H$200,A8,'Data Capture Sheet'!$I$9:$I$200)","v":0},"Ltrs","CAS 11097-69-1; Harmful by ingestion and skin contact. Possible carcinogen, environmental pollutant. Identify if only in existing sealed equipment.",0,0,null,null,null,null,null,"",null,""]
["A","Asbestos",null,2212,9,9,{"$f":"SUMIF('Data Capture Sheet'!$H$9:$H$200,A9,'Data Capture Sheet'!$I$9:$I$200)","v":0},null,"CAS 1332-21-4; Mineral fibres of varying length. Non combustible. Inhalation of the dust of asbestos fibres is dangerous (carcinogen) and therfore exposure to the dust should be avoided at all times. Always preevent the generation of asbestos dust. Crocidolite (blue asbestos) should be regarded as the most hazardous type of asbestos.",0,0,null,null,null,null,null,null,null,""]
["BR","Battery Acid (replenishment)","Sulphuric Acid",1830,8,"6.1D; 6.7A; 6.9A; 8.1A; 8.2B; 8.3A; 9.1D",{"$f":"SUMIF('Data Capture Sheet'!$H$9:$H$200,A10,'Data Capture Sheet'!$I$9:$I$200)","v":0},"Ltrs","CAS 7664-93-9; Colourless, oily liquid, density up to 1.840 kg/L. In the presence of moisture highly corrosive to most metals. Include the quantity of acid used for battery 'top-up' .",0,0,null,null,null,null,null,"","",""]
["BS","Battery Acid (sealed units)","Sulphuric Acid",1830,8,"6.1D; 6.7A; 6.9A; 8.1A; 8.2B; 8.3A; 9.1D",{"$f":"SUMIF('Data Capture Sheet'!$H$9:$H$200,A11,'Data Capture Sheet'!$I$9:$I$200)","v":360},"Ltrs","CAS 7664-93-9; Colourless, oily liquid, density up to 1.840 kg/L. In the presence of moisture highly corrosive to most metals.",1320,360,null,null,null,null,null,"x","x","x"]
["BV","Battery Acid (vented units)","Sulphuric Acid",1830,8,"6.1D; 6.7A; 6.9A; 8.1A; 8.2B; 8.3A; 9.1D",{"$f":"SUMIF('Data Capture Sheet'!$H$9:$H$200,A12,'Data Capture Sheet'!$I$9:$I$200)","v":0},"Ltrs","CAS 7664-93-9; Colourless, oily liquid, density up to 1.840 kg/L. In the presence of moisture highly corrosive to most metals. ",0,0,null,null,null,null,null,"","",""]
["N","Ammonia Solution",null,2672,8,8,{"$f":"SUMIF('Data Capture Sheet'!$H$9:$H$200,A13,'Data Capture Sheet'!$I$9:$I$200)","v":0},"Ltrs","CAS 7664-41-7; Flammable; Corrosive",0,0,null,null,null,null,null,null,""]
["O","Insulating Oil","Naphthenic Oil; Crude Oil - Low Flammability",null,null,"3.1D; 6.1E; 6.3B; 6.7B; 9.1C",{"$f":"SUMIF('Data Capture Sheet'!$H$9:$H$200,A14,'Data Capture Sheet'!$I$9:$I$200)","v":117018},"Ltrs","CAS 8002-05-9; Identify if only in existing sealed equipment.",136952,136862,null,null,"x",null,null,"x",null,"x"]
["D","Diesel Oil","Automotive gas oil ADO",1202,null,"3.1D; 6.1E; 6.3B; 6.7B; 9.1B",{"$f":"SUMIF('Data Capture Sheet'!$H$9:$H$200,A15,'Data Capture Sheet'!$I$9:$I$200)","v":0},"Ltrs","Detail storage quantity and container type (tank or drum)",0,0,null,null,"",null,null,"",null,""]
["Ke/T","Kerosine\nTurpentine",null,"1223\n1299",3,"3.1C; 6.1E; 6.3B; 9.1B",{"$f":"SUMIF('Data Capture Sheet'!$H$9:$H$200,A16,'Data Capture Sheet'!$I$9:$I$200)","v":0},"Ltrs","Identify if only in closed containers.\nCAS 9005-90-7; Mixture of resin and volatile oil. Immiscible with water.",0,0,null,null,"",null,null,"",null,""]
["Su","Sulphur",null,1350,4.0999999999999996,"4.1.1B;6.4A",{"$f":"SUMIF('Data Capture Sheet'!$H$9:$H$200,A17,'Data Capture Sheet'!$I$9:$I$200)","v":0},"Kgs","CAS 7704-34-9; Dry powdered form of solid; Flammable",0,0,null,null,null,"",null,""]
["C","Cobalt Chloride","CoCl2; Cobalt",3089,4.0999999999999996,"4.1.1B; 6.4A; 6.5A ;6.5B; 6.7B; 6.8B; 6.9A",{"$f":"SUMIF('Data Capture Sheet'!$H$9:$H$200,A18,'Data Capture Sheet'!$I$9:$I$200)","v":0},"Kgs","CAS 7440-48-4; Metal powder, flammable, N.O.S.",0,0,null,null,null,"",null,""]
["K","Cleaning Solutions",null,null,null,null,{"$f":"SUMIF('Data Capture Sheet'!$H$9:$H$200,A19,'Data Capture Sheet'!$I$9:$I$200)","v":0},"Ltrs",null,0,0,null,null,null,null,"","",""]
["L","Lubricating Oils",null,null,null,null,{"$f":"SUMIF('Data Capture Sheet'!$H$9:$H$200,A20,'Data Capture Sheet'!$I$9:$I$200)","v":72},"Ltrs","General lubricating oils used in miscellaneous equipment on site.",0,72,null,null,"x",null,null,"x",null,"x"]
["V","Solvents (General)","Flammable Solvents, not otherwise stated (N.O.S)",null,3,"3.1B; 6.4A; 9.1D",{"$f":"SUMIF('Data Capture Sheet'!$H$9:$H$200,A21,'Data Capture Sheet'!$I$9:$I$200)","v":0},"Ltrs",null,0,0,null,null,"",null,null,"",null,""]
["G","Gas General (not listed below)",null,null,null,null,{"$f":"SUMIF('Data Capture Sheet'!$H$9:$H$200,A22,'Data Capture Sheet'!$I$9:$I$200)","v":0},"Ltrs",null,0,0,"",null,null,null,""]
["Ga","Oxygen Bottle(s)",null,1072,"2.2; 5.1","5.1.2A",{"$f":"SUMIF('Data Capture Sheet'!$H$9:$H$200,A23,'Data Capture Sheet'!$I$9:$I$200)","v":0},"Kgs","CAS 7782-44-7; Non-flammable, odourless gas. Strong supporter of combustion. Slightly denser than air (1.1). Combustible materials impregnated with oxygen may ignite readily.",0,0,"",null,null,""]
["Gb","Acetylene Bottle(s)",null,1001,2.1,"2.1.1A",{"$f":"SUMIF('Data Capture Sheet'!$H$9:$H$200,A24,'Data Capture Sheet'!$I$9:$I$200)","v":0},"Kgs","CAS 74-86-2; Flammable, disolved gas with slight odour. Less dense than air (0.907). Contained in cylinders containing a solvent, usually acetone, and a porous mass. Rough handling and exposure to local heating should be avoided. Results of such rough handling or heating may be delayed explosion. Empty cylinders must be treated the same as full cylinders.",0,0,""]
["Gc","Nitrogen Bottle(s)",null,1066,2.2000000000000002,2.2000000000000002,{"$f":"SUMIF('Data Capture Sheet'!$H$9:$H$200,A25,'Data Capture Sheet'!$I$9:$I$200)","v":0},"Kgs","CAS 7727-37-9; Non-flammable, non toxic and odourless gas. It is a simply asphixiant and in sufficient quantities can displace the oxygen levels to below those necessary to sustain life.",0,0,null,""]
["Gd","Carbon Dioxide","Carbonic acid anhydride; Carbonic anhydride; Dry ice ",1013,2.2000000000000002,2.2000000000000002,{"$f":"SUMIF('Data Capture Sheet'!$H$9:$H$200,A26,'Data Capture Sheet'!$I$9:$I$200)","v":0},"Ltrs","CAS 124-38-9; Compressed, liquified, non-flammable gas. Denser than air (1.5).",0,0,null,""]
["Other chemical products on-site > 5 litres: (List hazardous chemical name below and add quantities and container types only as above)"]
["X1","X1 - Miscellaneous",null,"…","…","…",{"$f":"SUMIF('Data Capture Sheet'!$H$9:$H$200,A28,'Data Capture Sheet'!$I$9:$I$200)","v":0},null,null,0,0,null,null,null,null,null,null,null,""]
["X2","X2 - Miscellaneous",null,"…","…","…",{"$f":"SUMIF('Data Capture Sheet'!$H$9:$H$200,A29,'Data Capture Sheet'!$I$9:$I$200)","v":0},null,null,0,0,null,null,null,null,null,null,null,""]
["X3","X3 - Miscellaneous",null,"…","…","…",{"$f":"SUMIF('Data Capture Sheet'!$H$9:$H$200,A30,'Data Capture Sheet'!$I$9:$I$200)","v":0},null,null,0,0,null,null,null,null,null,null,null,""]
[null,null,null,null,null,"Note 0",null,"   Used at HVDC sites for cleaning Mercury Arc Valves"]
[null,null,null,null,null,"Note 1",null,"   Items identified by this colour shouldn't be kept on an unmanned site!"]
["HSNO Responsibilities",null,null,null,null,"Note 2",null,"   Items identified by this colour should be removed and replaced with an alternative product."]
["Item","Type","Name","Role","Certificate No.","Expiry Date"]
[1,{"$f":"'Data Capture Sheet'!P5","v":"Person in Charge"},{"$f":"'Data Capture Sheet'!Q5","v":"Rory Drysdale"},{"$f":"'Data Capture Sheet'!S5","v":"Manager"},{"$f":"'Data Capture Sheet'!T5","v":"N/A"},{"$f":"'Data Capture Sheet'!U5","v":"N/A"},null,null,"Sign F, HS Classes 2.2, 3, 6, 8, 9, "]
[2,{"$f":"'Data Capture Sheet'!P6","v":"Approved Handler 1"},{"$f":"'Data Capture Sheet'!Q6","v":"Tawhai Raureti"},{"$f":"'Data Capture Sheet'!S6","v":"Supervisor"},{"$f":"'Data Capture Sheet'!T6","v":0},{"$f":"'Data Capture Sheet'!U6","v":"00:00:00"}]
[3,{"$f":"'Data Capture Sheet'!P7","v":"Approved Handler 2"},{"$f":"'Data Capture Sheet'!Q7","v":0},{"$f":"'Data Capture Sheet'!S7","v":0},{"$f":"'Data Capture Sheet'!T7","v":0},{"$f":"'Data Capture Sheet'!U7","v":"00:00:00"},null,null,null,{"$f":"B1","v":"Hazardous Substances Register - Summary Sheet"}]
[null,null,null,null,null,null,null,null,"F"]
["Location Certification",null,"If required"]
[null,"Required","Site",null,"Certificate No.","Expiry Date"]
[null,{"$f":"'Data Capture Sheet'!K3","v":"No"},{"$f":"'Data Capture Sheet'!Q10","v":"WRK - Wairakei - RSA3"},null,{"$f":"'Data Capture Sheet'!T10","v":0},{"$f":"'Data Capture Sheet'!U10","v":"00:00:00"}]
[null,null,null,null,null,null,null,null,null,null,"Site name",null,null,"Code",null,"Group"]
["Stationary Container Certification",null,null,null,"Required?",{"$f":"'Data Capture Sheet'!O11","v":"No"},null,null,null,{"$f":"C2","v":"Wairakei"},null,null,null,{"$f":"D2","v":"WRK"},null,{"$f":"E2","v":"RSA3"}]
["Item","Type","Description",null,"Certificate No.","Expiry","Bund OK?",null,null,"Surveyed on ",null,null,null,{"$f":"G2","v":"2025-07-14"}]
[1,{"$f":"'Data Capture Sheet'!P14","v":"Stationary Container 1"},{"$f":"IF(OR('Data Capture Sheet'!Q14=\"\",'Data Capture Sheet'!Q14=\"N/A\",'Data Capture Sheet'!Q14=\"NA\"),\"\",\"SC\"& A45 & \" - \" & 'Data Capture Sheet'!Q14 & \" - \" & 'Data Capture Sheet'!R14 & \" - \" & 'Data Capture Sheet'!S14)","v":""},null,{"$f":"'Data Capture Sheet'!T14","v":0},{"$f":"'Data Capture Sheet'!U14","v":"00:00:00"},{"$f":"'Data Capture Sheet'!V14","v":"00:00:00"}]
[2,{"$f":"'Data Capture Sheet'!P15","v":"Stationary Container 2"},{"$f":"IF(OR('Data Capture Sheet'!Q15=\"\",'Data Capture Sheet'!Q15=\"N/A\",'Data Capture Sheet'!Q15=\"NA\"),\"\",\"SC\"& A46 & \" - \" & 'Data Capture Sheet'!Q15 & \" - \" & 'Data Capture Sheet'!R15 & \" - \" & 'Data Capture Sheet'!S15)","v":""},null,{"$f":"'Data Capture Sheet'!T15","v":0},{"$f":"'Data Capture Sheet'!U15","v":"00:00:00"},{"$f":"'Data Capture Sheet'!V15","v":"00:00:00"},null,null,"HSR Revision",null,"HSNO-WRK-Rev23.xls"]
[3,{"$f":"'Data Capture Sheet'!P16","v":"Stationary Container 3"},{"$f":"IF(OR('Data Capture Sheet'!Q16=\"\",'Data Capture Sheet'!Q16=\"N/A\",'Data Capture Sheet'!Q16=\"NA\"),\"\",\"SC\"& A47 & \" - \" & 'Data Capture Sheet'!Q16 & \" - \" & 'Data Capture Sheet'!R16 & \" - \" & 'Data Capture Sheet'!S16)","v":""},null,{"$f":"'Data Capture Sheet'!T16","v":0},{"$f":"'Data Capture Sheet'!U16","v":"00:00:00"},{"$f":"'Data Capture Sheet'!V16","v":"00:00:00"}]
[4,{"$f":"'Data Capture Sheet'!P17","v":"Stationary Container 4"},{"$f":"IF(OR('Data Capture Sheet'!Q17=\"\",'Data Capture Sheet'!Q17=\"N/A\",'Data Capture Sheet'!Q17=\"NA\"),\"\",\"SC\"& A48 & \" - \" & 'Data Capture Sheet'!Q17 & \" - \" & 'Data Capture Sheet'!R17 & \" - \" & 'Data Capture Sheet'!S17)","v":""},null,{"$f":"'Data Capture Sheet'!T17","v":0},{"$f":"'Data Capture Sheet'!U17","v":"00:00:00"},{"$f":"'Data Capture Sheet'!V17","v":"00:00:00"}]
[5,{"$f":"'Data Capture Sheet'!P18","v":"Stationary Container 5"},{"$f":"IF(OR('Data Capture Sheet'!Q18=\"\",'Data Capture Sheet'!Q18=\"N/A\",'Data Capture Sheet'!Q18=\"NA\"),\"\",\"SC\"& A49 & \" - \" & 'Data Capture Sheet'!Q18 & \" - \" & 'Data Capture Sheet'!R18 & \" - \" & 'Data Capture Sheet'!S18)","v":""},null,{"$f":"'Data Capture Sheet'!T18","v":0},{"$f":"'Data Capture Sheet'!U18","v":"00:00:00"},{"$f":"'Data Capture Sheet'!V18","v":"00:00:00"}]
[6,{"$f":"'Data Capture Sheet'!P19","v":"Stationary Container 6"},{"$f":"IF(OR('Data Capture Sheet'!Q19=\"\",'Data Capture Sheet'!Q19=\"N/A\",'Data Capture Sheet'!Q19=\"NA\"),\"\",\"SC\"& A50 & \" - \" & 'Data Capture Sheet'!Q19 & \" - \" & 'Data Capture Sheet'!R19 & \" - \" & 'Data Capture Sheet'!S19)","v":""},null,{"$f":"'Data Capture Sheet'!T19","v":0},{"$f":"'Data Capture Sheet'!U19","v":"00:00:00"},{"$f":"'Data Capture Sheet'!V19","v":"00:00:00"}]
[7,{"$f":"'Data Capture Sheet'!P20","v":"Stationary Container 7"},{"$f":"IF(OR('Data Capture Sheet'!Q20=\"\",'Data Capture Sheet'!Q20=\"N/A\",'Data Capture Sheet'!Q20=\"NA\"),\"\",\"SC\"& A51 & \" - \" & 'Data Capture Sheet'!Q20 & \" - \" & 'Data Capture Sheet'!R20 & \" - \" & 'Data Capture Sheet'!S20)","v":""},null,{"$f":"'Data Capture Sheet'!T20","v":0},{"$f":"'Data Capture Sheet'!U20","v":"00:00:00"},{"$f":"'Data Capture Sheet'!V20","v":"00:00:00"}]
[8,{"$f":"'Data Capture Sheet'!P21","v":"Stationary Container 8"},{"$f":"IF(OR('Data Capture Sheet'!Q21=\"\",'Data Capture Sheet'!Q21=\"N/A\",'Data Capture Sheet'!Q21=\"NA\"),\"\",\"SC\"& A52 & \" - \" & 'Data Capture Sheet'!Q21 & \" - \" & 'Data Capture Sheet'!R21 & \" - \" & 'Data Capture Sheet'!S21)","v":""},null,{"$f":"'Data Capture Sheet'!T21","v":0},{"$f":"'Data Capture Sheet'!U21","v":"00:00:00"},{"$f":"'Data Capture Sheet'!V21","v":"00:00:00"},null,"Note - The actual sign layout may differ from the image above."]
[9,{"$f":"'Data Capture Sheet'!P22","v":"Stationary Container 9"},{"$f":"IF(OR('Data Capture Sheet'!Q22=\"\",'Data Capture Sheet'!Q22=\"N/A\",'Data Capture Sheet'!Q22=\"NA\"),\"\",\"SC\"& A53 & \" - \" & 'Data Capture Sheet'!Q22 & \" - \" & 'Data Capture Sheet'!R22 & \" - \" & 'Data Capture Sheet'!S22)","v":""},null,{"$f":"'Data Capture Sheet'!T22","v":0},{"$f":"'Data Capture Sheet'!U22","v":"00:00:00"},{"$f":"'Data Capture Sheet'!V22","v":"00:00:00"}]
[10,{"$f":"'Data Capture Sheet'!P23","v":"Stationary Container 10"},{"$f":"IF(OR('Data Capture Sheet'!Q23=\"\",'Data Capture Sheet'!Q23=\"N/A\",'Data Capture Sheet'!Q23=\"NA\"),\"\",\"SC\"& A54 & \" - \" & 'Data Capture Sheet'!Q23 & \" - \" & 'Data Capture Sheet'!R23 & \" - \" & 'Data Capture Sheet'!S23)","v":""},null,{"$f":"'Data Capture Sheet'!T23","v":0},{"$f":"'Data Capture Sheet'!U23","v":"00:00:00"},{"$f":"'Data Capture Sheet'!V23","v":"00:00:00"}]

{"sheet":"Signs","index":7,"n_rows":0,"n_cols":0,"rows_kept":0,"cut":false,"hidden":true,"merged":[]}